[Event "Mitropa Cup Open 2024"]
[Site "Apolda"]
[Date "2024.02.21"]
[Round "7.20"]
[White "Karacsonyi, Gellert"]
[Black "Svane, Frederik"]
[Result "0-1"]
[ECO "C02"]
[WhiteElo "2398"]
[BlackElo "2625"]
[Annotator "TA"]
[PlyCount "74"]
[EventDate "2024.02.15"]
[EventType "team-tourn"]
[EventCountry "GER"]
[SourceTitle "playchess.com"]
[Source "ChessBase"]
[SourceQuality "1"]
[WhiteTeam "Hungary"]
[BlackTeam "Germany"]
[WhiteTeamCountry "HUN"]
[BlackTeamCountry "GER"]
[TimeControl "40/5400+30:1800+30"]

{[%evp 15,74,31,39,37,41,-54,0,-10,-1,-14,-20,-60,-48,-81,-67,-160,-155,-149,-150,-167,-120,-107,-116,-164,-99,-109,-110,-260,-278,-250,-264,-229,-202,-273,-157,-147,-154,-155,-146,-168,-160,-214,-218,-230,-221,-445,-447,-453,-420,-627,-569,-743,-736,-729,-714,-884,-819,-1203,-1170,-1172,-1158]} 1. e4 {[%emt 0:00:03]} e6 {[%emt 0:00:18]} 2. d4 {[%emt 0:00:18]} d5 {[%emt 0:00:07]} 3. e5 {[%emt 0:01:23]} c5 {[%emt 0:00:18]} 4. c3 {[%emt 0:00:09]} Nc6 {[%emt 0:00:04]} 5. Nf3 {[%emt 0:00:06]} Bd7 {[%emt 0:00:06]} 6. Be2 {[%emt 0:02:08]} Nge7 {[%emt 0:00:07]} 7. O-O {[%emt 0:00:10]} Nf5 {[%emt 0:00:21]} 8. dxc5 {[%emt 0:01:08]} Bxc5 {[%emt 0:00:07]} 9. Nbd2 {[%emt 0:03:30]} O-O {[%emt 0:04:17]} 10. c4 {[%emt 0:08:58]} (10. Nb3 $14 Bb6 11. Bd3) 10... Bb6 {[%emt 0:17:53]} 11. Bd3 {[%emt 0:05:23] The position is equal.} Nfd4 {[%emt 0:05:12]} 12. Nxd4 {[%emt 0:06:44]} (12. Re1 {simplifies} g6 13. h3 f6 14. Nxd4 Nxd4 15. cxd5 exd5 16. Nf3) 12... Nxd4 {[%emt 0:09:54]} 13. Qh5 {[%emt 0:17:58][%csl Gd3][%cal Rh5h7]} (13. b4 {simplifies} dxc4 14. Nxc4 Bc6 15. Bf4) 13... g6 {[%emt 0:12:48]} 14. Qh6 {[%emt 0:03:17] [#]} Bc6 $1 {[%emt 0:02:18]} 15. Nb3 {[%emt 0:21:35]} (15. Rd1 $15) 15... dxc4 $17 {[%emt 0:00:56]} 16. Bxc4 {[%emt 0:03:14]} Nf5 {[%emt 0:00:19]} 17. Qg5 {[%emt 0:03:27]} a5 {[%emt 0:09:47]} ({Black should play} 17... Qc7 $19 {[%cal Oc6g2]} 18. Qf4 Rfd8) 18. Qxd8 {[%emt 0:01:06]} Rfxd8 {[%emt 0:00:06]} 19. Bg5 {[%emt 0:00:14] [#]} (19. a4 $17 {is a better defense.}) 19... Rdc8 {[%emt 0:00:54]} (19... a4 $1 $19 {[%cal Ra4b3]} 20. Bxd8 Rxd8) 20. Nd2 {[%emt 0:12:15]} Bd4 {[%emt 0:03:29][%csl LRb2,LRe5] Black is more active.} 21. Bf6 {[%emt 0:00:36] Now White is beyond hope.} (21. g4 $17 Ng7 22. Rab1) 21... Bxb2 $19 {[%emt 0:00:06]} 22. Rab1 {[%emt 0:00:59]} Bc3 {[%emt 0:00:13]} 23. Rfd1 {[%emt 0:00:45]} Ng7 {[%emt 0:05:05]} 24. f4 {[%emt 0:02:34]} Nh5 {[%emt 0:01:13]} (24... Bd4+ $19 25. Kf1 Nf5) 25. Bg5 $17 {[%emt 0:00:43]} Kg7 $36 {[%emt 0:00:12][%mdl 2048] ...h6 would now be deadly. Black is really pushing.} 26. g3 {[%emt 0:01:57]} f6 {[%emt 0:08:25]} 27. exf6+ {[%emt 0:00:10]} Nxf6 {[%emt 0:00:01]} 28. Bxe6 {[%emt 0:01:16]} (28. Bxf6+ $17 Kxf6 29. Kf2) 28... Re8 $19 {[%emt 0:00:38]} 29. Bxf6+ {[%emt 0:00:33]} Kxf6 {[%emt 0:00:51]} ({Don't take} 29... Bxf6 30. Bg4 $17) 30. Bc4 {[%emt 0:00:04]} (30. Bh3 {keeps fighting.} Rad8 31. Nc4) 30... Rad8 {[%emt 0:02:00]} 31. Nb3 {[%emt 0:00:07]} a4 {[%emt 0:00:08]} 32. Na1 {[%emt 0:00:36] [#]} (32. Rxd8 $142 Rxd8 33. Kf2 axb3 34. Rxb3 Bd4+ 35. Ke2) 32... b5 $1 {[%emt 0:01:36][%mdl 512] White is weak on the dark squares. Black is clearly winning.} 33. Be2 {[%emt 0:03:03]} (33. Bd3 Bf3) 33... Rxd1+ {[%emt 0:04:08]} 34. Bxd1 {[%emt 0:00:01]} Be4 {[%emt 0:00:31]} 35. Nc2 {[%emt 0:00:56]} Rd8 {[%emt 0:00:09]} 36. Rc1 {[%emt 0:00:32]} Bb2 {[%emt 0:00:11] A strong pair of Bishops.} 37. Rb1 {[%emt 0:00:07]} a3 {[%emt 0:00:03] Weighted Error Value: White=0.72/Black=0.15 (very precise) .  Mistake:       	White=7     	Black=3      Inaccurate:     	White=4     	Black=1      OK:         	White=7     	Black=6      Best:        	White=3     	Black=4      Strong:       	---       	Black=1} 0-1

[Event "Mitropa Cup Open 2024"]
[Site "Apolda"]
[Date "2024.02.22"]
[Round "8.1"]
[White "Krstulovic, Alex"]
[Black "Georgiadis, Nico"]
[Result "1/2-1/2"]
[ECO "D38"]
[WhiteElo "2414"]
[BlackElo "2547"]
[Annotator "RC"]
[PlyCount "61"]
[EventDate "2024.02.15"]
[EventType "team-tourn"]
[EventCountry "GER"]
[SourceTitle "playchess.com"]
[Source "ChessBase"]
[SourceQuality "1"]
[WhiteTeam "Hungary"]
[BlackTeam "Switzerland"]
[WhiteTeamCountry "HUN"]
[BlackTeamCountry "SUI"]
[TimeControl "40/5400+30:1800+30"]

1. d4 {[%emt 0:00:04]} Nf6 {[%emt 0:00:09]} 2. Nf3 {[%emt 0:00:15]} d5 {[%emt 0:00:09]} 3. c4 {[%emt 0:00:05]} e6 {[%emt 0:00:07]} 4. Nc3 {[%emt 0:00:05]} Bb4 {[%emt 0:00:18]} 5. Bg5 {[%emt 0:00:07]} h6 {[%emt 0:00:24]} 6. Bxf6 {[%emt 0:00:06]} Qxf6 {[%emt 0:00:05]} 7. e3 {[%emt 0:00:04]} O-O {[%emt 0:00:37]} 8. Rc1 {[%emt 0:00:03]} Nc6 {[%emt 0:01:05]} 9. cxd5 {[%emt 0:03:47]} exd5 {[%emt 0:00:09]} 10. Be2 {[%emt 0:00:18]} Ne7 {[%emt 0:05:17]} 11. Qb3 {[%emt 0:04:56]} Qd6 {[%emt 0:10:42]} 12. O-O {[%emt 0:01:31]} c6 {[%emt 0:01:22]} 13. e4 {[%emt 0:03:07]} dxe4 {[%emt 0:01:25]} 14. Nxe4 {[%emt 0:00:10]} Qe6 {[%emt 0:09:47]} 15. Qxb4 {[%emt 0:15:02]} Nd5 {[%emt 0:18:10]} 16. Qa3 {[%emt 0:03:47]} Qxe4 {[%emt 0:00:13]} 17. Rfe1 {[%emt 0:00:40]} Qf4 {[%emt 0:03:31]} 18. Bd3 {[%emt 0:08:35]} Bf5 {[%emt 0:04:47]} 19. Ne5 {[%emt 0:02:22]} Rfe8 {[%emt 0:06:27]} 20. g3 {[%emt 0:09:12]} Qg5 {[%emt 0:06:36]} 21. Bxf5 {[%emt 0:03:24]} Qxf5 {[%emt 0:00:06]} 22. Nc4 {[%emt 0:00:05]} Re4 {[%emt 0:10:39]} 23. Nd6 {[%emt 0:03:41]} Rxe1+ {[%emt 0:00:30]} 24. Rxe1 {[%emt 0:02:45]} Qd7 25. Nc4 Qf5 {[%emt 0:00:43]} 26. Nd6 {[%emt 0:01:00]} Qd7 27. Nc4 {[%emt 0:16:56]} Qg4 28. Qb3 {[%emt 0:22:23]} Qd7 {[%emt 0:09:57]} 29. Qa3 {[%emt 0:00:00]} Qg4 {[%emt 0:01:05]} 30. Qb3 {[%emt 0:00:00]} Qd7 {[%emt 0:04:07]} 31. Qa3 {[%emt 0:01:30]} 1/2-1/2

[Event "Mitropa Cup Open 2024"]
[Site "Apolda"]
[Date "2024.02.22"]
[Round "8.2"]
[White "Bogner, Sebastian"]
[Black "Juhasz, Agoston"]
[Result "1-0"]
[ECO "E04"]
[WhiteElo "2538"]
[BlackElo "2410"]
[Annotator "TA"]
[PlyCount "105"]
[EventDate "2024.02.15"]
[EventType "team-tourn"]
[EventCountry "GER"]
[SourceTitle "playchess.com"]
[Source "ChessBase"]
[SourceQuality "1"]
[WhiteTeam "Switzerland"]
[BlackTeam "Hungary"]
[WhiteTeamCountry "SUI"]
[BlackTeamCountry "HUN"]
[TimeControl "40/5400+30:1800+30"]

{[%evp 19,105,0,2,-12,-22,-31,-31,-35,-27,-33,-10,-21,-16,-27,-18,-37,0,0,0,0,0,0,0,0,13,14,22,15,15,0,18,0,0,0,0,0,0,20,227,219,223,205,210,208,293,276,256,219,277,251,401,411,412,398,367,344,461,457,497,480,838,788,791,731,1090,1424,1310,1193,1559,1596,1738,1537,1493,164,3279,2156,6152,5997,5110,4972,29976,29978,29975,29977,29982,29983,29983,29984]} 1. Nf3 {[%emt 0:00:03]} d5 {[%emt 0:00:29]} 2. d4 {[%emt 0:00:08]} Nf6 {[%emt 0:00:09]} 3. c4 {[%emt 0:00:20]} e6 {[%emt 0:00:06]} 4. g3 {[%emt 0:00:03]} dxc4 {[%emt 0:00:50]} 5. Bg2 {[%emt 0:00:03]} a6 {[%emt 0:00:23]} 6. O-O {[%emt 0:00:49]} Nc6 {[%emt 0:00:12]} 7. a4 {[%emt 0:01:13]} Rb8 {[%emt 0:01:59]} 8. a5 {[%emt 0:00:02]} b5 {[%emt 0:01:39] E04: Open Catalan: 5 Nf3.} 9. axb6 {[%emt 0:00:06]} cxb6 {[%emt 0:00:03]} 10. Bf4 {[%emt 0:09:17]} Bd6 {[%emt 0:00:23]} 11. Ne5 {[%emt 0:02:09]} Ne7 $1 {[%emt 0:00:17]} 12. Nxc4 {[%emt 0:06:33]} Bxf4 {[%emt 0:02:17]} 13. gxf4 {[%emt 0:00:03]} O-O {[%emt 0:02:19]} 14. e3 {[%emt 0:00:20]} Qc7 {[%emt 0:11:17]} 15. Nbd2 {[%emt 0:02:21]} Bb7 {[%emt 0:01:30]} 16. Bxb7 $146 {[%emt 0:03:55]} ({Predecessor:} 16. Ne5 Bxg2 17. Kxg2 Nf5 18. Qa4 b5 19. Qxa6 Qc2 20. Qa5 Ne4 21. Rfd1 Nh4+ 22. Kf1 {0-1 Scarella,E (2348)-Slipak,S (2502) ARG Circuit Vicente Lopez 2004 (1.2)}) 16... Qxb7 {[%emt 0:00:05]} 17. Qf3 {[%emt 0:00:29]} a5 {[%emt 0:13:08]} 18. Qxb7 {[%emt 0:05:47]} Rxb7 {[%emt 0:00:03]} 19. Rfc1 {[%emt 0:00:46]} Nfd5 {[%emt 0:08:04]} 20. Nd6 {[%emt 0:01:31]} Rd7 {[%emt 0:15:17]} 21. N2c4 {[%emt 0:01:27]} Nc6 {[%emt 0:05:48]} 22. Nb5 {[%emt 0:04:14]} Na7 {[%emt 0:04:24]} 23. Ne5 {[%emt 0:01:55]} Re7 {[%emt 0:04:18]} 24. Nd6 {[%emt 0:07:13]} Rd8 {[%emt 0:01:41]} 25. Ne4 {[%emt 0:04:41]} (25. Nc6 $5 Rxd6 26. Nxa7 $15) 25... Rc8 {[%emt 0:03:38]} 26. Nd6 {[%emt 0:01:15]} Rxc1+ {[%emt 0:06:13]} 27. Rxc1 {[%emt 0:00:24]} f6 {[%emt 0:01:16]} 28. Nc8 {[%emt 0:02:19]} Rc7 $2 {[%emt 0:14:23]} (28... fxe5 $11 29. Nxe7+ Nxe7) 29. Rxc7 $18 {[%emt 0:01:45]} Nxc7 {[%emt 0:00:01]} 30. Nxa7 {[%emt 0:00:23]} fxe5 {[%emt 0:00:02]} 31. fxe5 {[%emt 0:00:41]} a4 {[%emt 0:00:36]} (31... Kf8 $142 32. Kf1 Nd5) 32. Kf1 $1 $18 {[%emt 0:02:38]} b5 {[%emt 0:01:30] [#]} 33. Ke2 $1 {[%emt 0:00:59]} b4 {[%emt 0:00:44]} 34. Kd3 {[%emt 0:01:03]} a3 {[%emt 0:01:37]} (34... Nd5 $142 35. Kc4 g5) 35. bxa3 $18 {[%emt 0:00:05]} bxa3 {[%emt 0:00:02]} 36. Kc2 {[%emt 0:00:08]} Nd5 {[%emt 0:01:10]} 37. Kb3 {[%emt 0:07:37]} a2 {[%emt 0:00:26]} 38. Kxa2 {[%emt 0:00:06]} Nc3+ {[%emt 0:00:02]} 39. Kb3 {[%emt 0:02:47]} Nd1 {[%emt 0:00:03]} (39... Ne4 $142 40. f4 Kf8) 40. Kc4 {[%emt 0:04:11]} Nxf2 {[%emt 0:01:25]} 41. Kc5 {[%emt 0:31:44]} Ng4 {[%emt 0:16:46]} 42. Kd6 {[%emt 0:00:00]} Kf7 {[%emt 0:04:46]} 43. Nc6 {[%emt 0:00:00]} g5 {[%emt 0:02:33]} 44. Nd8+ {[%emt 0:00:00]} Kg6 {[%emt 0:00:03]} 45. Nxe6 {[%emt 0:00:00]} Nxe3 {[%emt 0:02:45]} 46. Nd8 $2 {[%emt 0:00:00]} (46. Nc7 h5 47. d5 Nf5+ 48. Kc5) 46... Nf5+ $2 {[%emt 0:01:23]} (46... h5) 47. Kc5 $18 {[%emt 0:00:00]} h5 {[%emt 0:00:52]} 48. d5 {[%emt 0:00:00]} h4 {[%emt 0:01:11]} 49. d6 {[%emt 0:00:00]} Ng7 {[%emt 0:01:47]} 50. d7 {[%emt 0:00:00]} g4 {[%emt 0:00:09] [#]} 51. Kd6 $1 {[%emt 0:00:00]} g3 {[%emt 0:02:33]} 52. hxg3 {[%emt 0:00:00]} hxg3 {[%emt 0:00:55]} 53. Ne6 {[%emt 0:00:00]} 1-0

[Event "Mitropa Cup Open 2024"]
[Site "Apolda"]
[Date "2024.02.22"]
[Round "8.3"]
[White "Vanczak, Tamas"]
[Black "Fecker, Noah"]
[Result "1/2-1/2"]
[ECO "B12"]
[WhiteElo "2431"]
[BlackElo "2397"]
[Annotator "TA"]
[PlyCount "79"]
[EventDate "2024.02.15"]
[EventType "team-tourn"]
[EventCountry "GER"]
[SourceTitle "playchess.com"]
[Source "ChessBase"]
[SourceQuality "1"]
[WhiteTeam "Hungary"]
[BlackTeam "Switzerland"]
[WhiteTeamCountry "HUN"]
[BlackTeamCountry "SUI"]
[TimeControl "40/5400+30:1800+30"]

{[%evp 9,79,0,4,0,0,0,0,6,29,14,24,14,14,16,20,-6,5,0,0,0,27,0,19,27,25,0,72,74,114,114,137,113,97,111,209,0,0,0,0,0,0,0,0,-10,-10,-6,-5,-37,0,0,0,0,0,0,0,0,0,0,0,0,7,0,0,0,0,0,0,0,0,0,0,0]} 1. e4 {[%emt 0:00:04]} c6 {[%emt 0:00:11]} 2. d4 {[%emt 0:00:15]} d5 {[%emt 0:00:07]} 3. e5 {[%emt 0:00:19]} c5 {[%emt 0:00:24]} 4. Nf3 {[%emt 0:00:25]} cxd4 {[%emt 0:00:21]} 5. Nxd4 {[%emt 0:00:08]} Nc6 {[%emt 0:02:00]} 6. Nxc6 {[%emt 0:00:12]} bxc6 {[%emt 0:00:01]} 7. Bd3 {[%emt 0:00:14]} e6 {[%emt 0:01:11]} 8. O-O {[%emt 0:02:32]} a5 {[%emt 0:01:45]} 9. Qe2 {[%emt 0:03:00]} Ne7 {[%emt 0:03:13]} 10. Be3 {[%emt 0:04:44]} Ng6 {[%emt 0:07:09]} 11. f4 {[%emt 0:00:19]} Be7 {[%emt 0:02:15]} 12. c3 {[%emt 0:13:45][%cal Bc2c3,Bc3c4][%mdl 32]} Rb8 {[%emt 0:10:02]} 13. b3 {[%emt 0:05:14]} c5 {[%emt 0:08:04]} 14. c4 {[%emt 0:02:00]} O-O {[%emt 0:04:32]} 15. Na3 {[%emt 0:08:19]} d4 {[%emt 0:09:14]} 16. Bd2 {[%emt 0:00:22]} Bb7 {[%emt 0:00:16]} 17. Qh5 {[%emt 0:09:43]} Qd7 {[%emt 0:06:50] Wards off Nb5} (17... Ra8 $11 {keeps the balance.}) 18. Nb5 $1 $16 {[%emt 0:07:26]} a4 {[%emt 0:03:46]} 19. bxa4 {[%emt 0:01:06] White is much more active.} Ra8 {[%emt 0:00:34]} 20. a5 {[%emt 0:00:47]} Bd8 {[%emt 0:02:45]} 21. Nd6 {[%emt 0:06:34] [#] Black must now prevent f5.} Bxa5 {[%emt 0:02:23]} (21... Bc6 $16) 22. Nxb7 $2 {[%emt 0:03:19]} (22. Bxa5 $18 Rxa5 23. f5 exf5 24. Bxf5) 22... Qxb7 {[%emt 0:01:40]} 23. Rab1 {[%emt 0:04:02]} Qc7 {[%emt 0:09:41]} 24. Bc1 {[%emt 0:00:36]} Rfb8 {[%emt 0:04:44]} 25. Rxb8+ {[%emt 0:06:45]} Qxb8 {[%emt 0:00:56]} 26. Qf3 {[%emt 0:04:22]} Ra7 {[%emt 0:05:05]} 27. Qe4 {[%emt 0:05:36]} Bb4 {[%emt 0:04:04]} 28. Bb1 {[%emt 0:05:11]} Ba3 {[%emt 0:01:38]} 29. Bxa3 {[%emt 0:02:29] The position is equal.} Rxa3 {[%emt 0:00:01]} 30. Qc6 {[%emt 0:00:12]} Ra5 {[%emt 0:03:59]} 31. Be4 {[%emt 0:01:49] [#] Rb1 would now be deadly.} Rxa2 {[%emt 0:01:03]} 32. Rb1 {[%emt 0:02:17] Prevents Qb3} Rb2 {[%emt 0:03:58]} 33. Ra1 {[%emt 0:00:07]} (33. Rxb2 $2 Qxb2 34. g3 Qc1+ 35. Kf2 Nf8 $19 (35... Qxc4 $2 36. Qa8+ Nf8 37. Qa3 $19)) 33... Qf8 {[%emt 0:00:20]} (33... Nxf4 $2 {too greedy.} 34. Ra8 g5 (34... Ne2+ $2 35. Kf1 $18) 35. Rxb8+ Rxb8 36. Qc7 $18 (36. Qxc5 d3 $18)) 34. g3 {[%emt 0:01:03]} Rb8 $1 {[%emt 0:00:37]} 35. Ra7 {[%emt 0:01:24]} Rc8 {[%emt 0:00:49]} 36. Qb7 {[%emt 0:00:40]} Rb8 {[%emt 0:00:16]} 37. Qc6 {[%emt 0:00:43]} Rc8 {[%emt 0:00:04]} 38. Qb7 {[%emt 0:00:43]} Rb8 {[%emt 0:00:12]} 39. Qc7 {[%emt 0:00:26]} Rc8 {[%emt 0:00:17]} 40. Qb7 {[%emt 0:00:43] Weighted Error Value: White=0.13 (very precise) /Black=0.12 (very precise) .  Missed win:     	White=1     	---        Mistake:       	---       	Black=2      Inaccurate:     	White=2     	Black=3      OK:         	White=16    	Black=15     Best:        	White=4     	---        Strong:       	White=1     	Black=1} 1/2-1/2

[Event "Mitropa Cup Open 2024"]
[Site "Apolda"]
[Date "2024.02.22"]
[Round "8.4"]
[White "Gallagher, Joseph G."]
[Black "Karacsonyi, Gellert"]
[Result "1/2-1/2"]
[ECO "C50"]
[WhiteElo "2427"]
[BlackElo "2398"]
[Annotator "TA"]
[PlyCount "80"]
[EventDate "2024.02.15"]
[EventType "team-tourn"]
[EventCountry "GER"]
[SourceTitle "playchess.com"]
[Source "ChessBase"]
[SourceQuality "1"]
[WhiteTeam "Switzerland"]
[BlackTeam "Hungary"]
[WhiteTeamCountry "SUI"]
[BlackTeamCountry "HUN"]
[TimeControl "40/5400+30:1800+30"]

{[%evp 10,80,19,11,14,0,8,0,16,0,4,0,0,0,18,30,20,19,15,-33,-32,-29,0,0,25,-11,0,10,20,18,29,-27,-29,-24,-41,-18,-4,-5,-2,-7,-12,-13,19,14,46,40,50,64,59,59,50,0,0,0,0,0,0,0,0,0,0,0,0,0,0,0,0,0,0,0,0,0,0]} 1. e4 {[%emt 0:00:03]} e5 {[%emt 0:00:11]} 2. Nf3 {[%emt 0:00:56]} Nc6 {[%emt 0:00:09]} 3. Bc4 {[%emt 0:02:20]} Bc5 {[%emt 0:00:42]} 4. d3 {[%emt 0:00:24]} Nf6 {[%emt 0:00:13]} 5. O-O {[%emt 0:01:13]} d6 {[%emt 0:00:30]} 6. a4 {[%emt 0:01:27]} a5 {[%emt 0:04:04]} 7. Nbd2 {[%emt 0:03:13]} O-O {[%emt 0:00:50]} 8. c3 {[%emt 0:02:09]} Ba7 {[%emt 0:00:56]} 9. h3 {[%emt 0:03:14]} Ne7 {[%emt 0:06:09]} 10. Re1 {[%emt 0:02:27]} Ng6 {[%emt 0:04:02]} 11. Nf1 {[%emt 0:01:35]} Be6 {[%emt 0:00:40]} 12. Bxe6 {[%emt 0:02:47]} fxe6 {[%emt 0:01:31]} 13. d4 {[%emt 0:00:06]} exd4 {[%emt 0:17:46]} 14. Nxd4 {[%emt 0:13:22]} (14. cxd4 $11 Nh5 15. Be3) 14... Qd7 $15 {[%emt 0:02:02]} 15. Qb3 {[%emt 0:03:19][%csl LRb7,LRe6]} d5 {[%emt 0:01:20]} 16. Ng3 {[%emt 0:06:00]} Kh8 {[%emt 0:18:02]} 17. exd5 {[%emt 0:11:50]} (17. Qxb7 $2 Bxd4 18. cxd4 Rfb8 $19) 17... exd5 {[%emt 0:01:19]} 18. Be3 {[%emt 0:01:38][%cal Od4e6]} (18. Qxb7 $2 Bxd4 (18... Rfb8 19. Qc6 $11) 19. Qb5 (19. cxd4 $2 Rfb8 $19) 19... c6 $19) 18... Ne5 {[%emt 0:08:49]} 19. Ndf5 {[%emt 0:11:27] And now Bxa7 would win.} Nd3 {[%emt 0:03:36]} 20. Red1 {[%emt 0:21:00]} ({White should play} 20. Bxa7 Nxe1 21. Bc5) 20... Bxe3 $11 {[%emt 0:02:23]} 21. Nxe3 {[%emt 0:04:12] [#]} Nxf2 {[%emt 0:05:45]} 22. Rd2 {[%emt 0:00:22]} (22. Kxf2 Ng4+ (22... Ne4+ 23. Kg1 $11) 23. Kg1 (23. Ke2 $2 Rae8 $19) 23... Nxe3 $19) 22... N2e4 {[%emt 0:08:48]} 23. Nxe4 {[%emt 0:00:07]} Nxe4 {[%emt 0:00:03]} 24. Qxd5 {[%emt 0:01:55]} Qe7 {[%emt 0:01:38]} 25. Re2 {[%emt 0:01:25][%cal Oa1e1]} c6 {[%emt 0:02:40]} (25... Ng3 $5 26. Ree1 $8 c6 $11) 26. Nf5 {[%emt 0:01:27] [#] Black must now prevent Qg8+.} Nxc3 {[%emt 0:01:37]} (26... Qc5+ {simplifies} 27. Qxc5 Nxc5 28. Nd6 Kg8) 27. Qg8+ $1 {[%emt 0:01:28]} Rxg8 {[%emt 0:00:02]} 28. Rxe7 {[%emt 0:00:06]} Nd5 {[%emt 0:03:06]} 29. Rxb7 {[%emt 0:00:04]} Rgb8 {[%emt 0:01:47]} 30. Rxb8+ {[%emt 0:01:28]} ({Much worse is} 30. Rxg7 Rxb2 31. Rc1 Ne3) (30. Nd6 $14) 30... Rxb8 $14 {[%emt 0:00:06][%mdl 4096] Endgame. KRN-KRN. The position is equal.} 31. Rc1 {[%emt 0:00:21]} g6 {[%emt 0:00:27]} 32. Nd4 {[%emt 0:01:40]} Rxb2 {[%emt 0:00:02]} 33. Nxc6 {[%emt 0:00:26]} Nf4 {[%emt 0:01:09] aiming for ...Ne2+.} 34. Rc4 {[%emt 0:00:40]} g5 {[%emt 0:01:23]} 35. h4 {[%emt 0:00:31]} Rxg2+ {[%emt 0:01:04]} 36. Kf1 {[%emt 0:00:06][%cal Oc4f4]} Ra2 {[%emt 0:01:06]} 37. hxg5 {[%emt 0:00:19]} Ra1+ {[%emt 0:00:22]} 38. Kf2 {[%emt 0:00:08]} Nd3+ {[%emt 0:00:18]} 39. Kg3 {[%emt 0:01:08]} Nb2 {[%emt 0:00:28]} 40. Rd4 {[%emt 0:01:01]} Ra3+ {[%emt 0:00:10] Weighted Error Value: White=0.09 (flawless) /Black=0.07 (flawless) .  Mistake:       	White=3     	---        Inaccurate:     	White=1     	Black=3      OK:         	White=16    	Black=11     Best:        	White=2     	Black=1      Strong:       	White=1     	---} 1/2-1/2

[Event "Mitropa Cup Open 2024"]
[Site "Apolda"]
[Date "2024.02.22"]
[Round "8.5"]
[White "Sahidi, Samir"]
[Black "Baidetskyi, Valentin"]
[Result "1-0"]
[ECO "E71"]
[WhiteElo "2478"]
[BlackElo "2499"]
[Annotator "TA"]
[PlyCount "76"]
[EventDate "2024.02.15"]
[EventType "team-tourn"]
[EventCountry "GER"]
[SourceTitle "playchess.com"]
[Source "ChessBase"]
[SourceQuality "1"]
[WhiteTeam "Slovakia"]
[BlackTeam "Austria"]
[WhiteTeamCountry "SVK"]
[BlackTeamCountry "AUT"]
[TimeControl "40/5400+30:1800+30"]

{[%evp 9,76,33,55,37,39,44,33,18,38,31,35,35,27,15,38,-8,36,0,0,0,0,-6,-9,0,16,11,24,28,31,46,65,27,26,12,14,14,13,16,36,38,33,14,14,14,20,14,25,0,17,0,0,0,42,29,52,0,54,54,40,41,47,51,61,33,34,7,131,122,129]} 1. d4 {[%emt 0:00:23]} Nf6 {[%emt 0:00:02]} 2. c4 {[%emt 0:00:15]} g6 {[%emt 0:00:04]} 3. Nc3 {[%emt 0:00:10]} Bg7 {[%emt 0:00:03]} 4. e4 {[%emt 0:00:15]} d6 {[%emt 0:00:03]} 5. h3 {[%emt 0:00:22]} e5 {[%emt 0:00:02]} 6. d5 {[%emt 0:03:30]} a5 {[%emt 0:00:29]} 7. Be3 {[%emt 0:00:35]} Na6 {[%emt 0:00:06]} 8. g4 {[%emt 0:04:18][%cal Bg2g4,Bg4g5][%mdl 32] White is slightly better.} h5 {[%emt 0:09:43]} 9. g5 {[%emt 0:01:06]} Nd7 {[%emt 0:00:16]} 10. Qd2 {[%emt 0:04:05]} Ndc5 {[%emt 0:06:13]} 11. h4 {[%emt 0:05:51]} O-O {[%emt 0:16:14]} 12. Bh3 {[%emt 0:04:33]} (12. f3 $14) 12... Bd7 {[%emt 0:07:59]} 13. Nge2 {[%emt 0:05:09]} Bxh3 {[%emt 0:01:34]} 14. Rxh3 {[%emt 0:00:08]} c6 {[%emt 0:00:08]} 15. Rd1 {[%emt 0:13:39]} Qc8 {[%emt 0:13:09]} 16. Rg3 {[%emt 0:03:23]} Rd8 {[%emt 0:00:32]} 17. Nc1 {[%emt 0:05:16]} Kh7 {[%emt 0:24:39][%cal Ob7b5]} 18. Nd3 {[%emt 0:01:39]} cxd5 {[%emt 0:03:35] [#] Threatens to win with ...d4.} 19. Nxc5 {[%emt 0:23:17]} dxc5 {[%emt 0:02:31]} 20. Nxd5 {[%emt 0:06:01][%cal Og3f3]} Nb4 {[%emt 0:00:41]} 21. a3 {[%emt 0:01:09]} Nxd5 {[%emt 0:00:10]} 22. cxd5 {[%emt 0:00:15]} a4 {[%emt 0:01:35]} 23. Qe2 {[%emt 0:00:59]} b6 {[%emt 0:02:52]} 24. Qb5 {[%emt 0:06:30]} Rd6 {[%emt 0:00:33]} 25. Ke2 {[%emt 0:00:58]} Ra5 {[%emt 0:04:56]} 26. Qd3 {[%emt 0:00:51]} Qe8 {[%emt 0:01:22]} 27. Bd2 {[%emt 0:00:27]} Ra7 {[%emt 0:00:22]} 28. Rf1 {[%emt 0:01:35]} Re7 {[%emt 0:01:30]} 29. Kd1 {[%emt 0:00:52]} Kg8 {[%emt 0:03:02]} 30. Kc1 {[%emt 0:00:31]} b5 {[%emt 0:00:30]} 31. Qc2 {[%emt 0:01:36]} Rc7 {[%emt 0:00:33]} 32. Kb1 {[%emt 0:01:13]} (32. Ba5 $14 Rc8 33. Rc3) 32... Rc8 {[%emt 0:00:28]} (32... Rdd7 $11) 33. Rc3 $14 {[%emt 0:00:59]} c4 {[%emt 0:00:03]} 34. Re3 {[%emt 0:00:31]} Rb6 {[%emt 0:00:21]} 35. Bb4 {[%emt 0:00:49]} Bf8 {[%emt 0:00:18]} 36. Qc3 {[%emt 0:01:42]} Bxb4 {[%emt 0:01:21]} 37. axb4 {[%emt 0:01:20]} Qe7 {[%emt 0:00:26]} (37... Ra6 $11) 38. f4 $16 {[%emt 0:01:01]} exf4 {[%emt 0:00:00] Weighted Error Value: White=0.11 (very precise) /Black=0.16 (very precise) .  Mistake:       	White=2     	Black=2      Inaccurate:     	White=4     	Black=2      OK:         	White=12    	Black=18     Best:        	White=1     	Black=1} 1-0